Workbook

Sheet 01.11.2021
A1: 1 Ноября 2021 понедельник
A2: Наименование продуктов | C2: Какао с молоком | D2: фрукты | E2: Тефтели из говядины | F2: напиток из зам. клюквы | G2: сок фрукт. | H2: салат из моркови | I2: каша вязк.из риса | J2: Бутерброд с маслом | K2: щи из св. капусты | L2: грудки куриные отварн. | M2: Макаронные изделия | N2: хлеб пшеничный | O2: печенье сдобное Вкусное | P2: хлеб ржано-пшеничный | Q2: Итого на 1 человека | R2: Итого на 5 человек
A3: Батон | B3: г | J3: 30 | Q3: =SUM(C3:P3) -> 30 | R3: =Q3*5 -> 150
A4: грудки курин. | B4: г | L4: 17.067 | Q4: =SUM(C4:P4) -> 17.067 | R4: =Q4*5 -> 85.335
A5: Какао порошок | B5: г | C5: 4 | Q5: 4 | R5: 20
A6: капуста свежая | B6: г | K6: 62.5 | Q6: 62.5 | R6: 312.5
A7: Картофель св. | B7: г | K7: 39.9 | Q7: 39.9 | R7: 199.5
A8: Клюква | B8: г | F8: 15 | Q8: 15 | R8: 75
A9: крупа рисовая | B9: г | I9: 44 | Q9: 44 | R9: 220
A10: Лук репчатый | B10: г | E10: 28.976 | K10: 11.905 | Q10: 40.881 | R10: 204.405
A11: макаронные изделия | B11: г | M11: 61.11 | Q11: 61.11 | R11: 305.55
A12: Масло раст. | B12: г | E12: 9.55 | H12: 10 | K12: 5 | Q12: 24.55 | R12: 122.75
A13: масло сливочное | B13: г | I13: 5 | J13: 15 | M13: 6.3 | Q13: 26.3 | R13: 131.5
A14: Молоко | B14: мл. | C14: 100 | I14: 100 | Q14: 200 | R14: 1000
A15: морковь | B15: г | E15: 3.75 | H15: 101.25 | K15: 12.5 | Q15: 117.5 | R15: 587.5
A16: Мука пшеничная | B16: г | E16: 6.92 | Q16: 6.92 | R16: 34.6
A17: Сахарный песок | B17: г | C17: 20 | E17: 0.5 | F17: 10 | H17: 10 | I17: 6 | Q17: 46.5 | R17: 232.5
A18: сок фруктовый | B18: шт. | G18: 1 | Q18: 1 | R18: 5
A19: соль | B19: г | E19: 2.1 | I19: 1 | K19: 1.5 | L19: 0.33 | M19: 1.8 | Q19: 6.73 | R19: 33.65
A20: томатная паста | B20: г | E20: 5 | K20: 1 | Q20: 6 | R20: 30
A21: Фарш из говядины | B21: г | E21: 44.3 | Q21: 44.3 | R21: 221.5
A22: Хлеб пшеничный | B22: г | E22: 9.32 | N22: 20 | Q22: 29.32 | R22: 146.6
A23: хлеб ржано-пшенич. | B23: г | P23: 20 | Q23: 20 | R23: 100
A24: Яблоки | B24: г. | D24: 120 | Q24: 120 | R24: 600
A25: Пченье Вкусное | O25: 45 | Q25: 45 | R25: 225

Sheet 02.11.2021
A1: 2 Ноября 2021 вторник
A2: Наименование продуктов | C2: хлеб пшеничный | D2: хлеб ржано-пшеничный | E2: фрукты | F2: сок фрукт. | G2: Батон | H2: Кисель из концентрата | I2: Батон | J2: каша вязк.из геркулеса | K2: салат из белокач. Капусты | L2: суп картофельный с вермишелью | M2: Фрикадельки мясные | N2: грудка куриная фтле | O2: Чай с сахаром,лимоном | P2: печенье сдоб. Мягкое | Q2: Итого на 1 человека | R2: Итого на 5 человек
A3: Батон | B3: г | I3: 25 | Q3: =SUM(C3:P3) -> 25 | R3: =Q3*5 -> 125
A4: грудки курин. | B4: г | N4: 107 | Q4: 107 | R4: =Q4*5 -> 535
A5: Какао порошок | B5: г | Q5: 0 | R5: 0
A6: капуста свежая | B6: г | K6: 98.625 | Q6: 98.625 | R6: 493.125
A7: Картофель св. | B7: г | L7: 99.75 | N7: 158.27 | Q7: 258.02 | R7: 1290.1
A8: Клюква | B8: г | Q8: 0 | R8: 0
A9: крупа рисовая | B9: г | Q9: 0 | R9: 0
A10: Лук репчатый | B10: г | L10: 11.905 | Q10: 11.905 | R10: 59.525
A11: макаронные изделия(соломка | B11: г | L11: 10 | Q11: 10 | R11: 50
A12: Масло раст. | B12: г | K12: 5 | L12: 2.5 | Q12: 7.5 | R12: 37.5
A13: масло сливочное | B13: г | J13: 5 | N13: 3 | Q13: 8 | R13: 40
A14: Молоко | B14: мл. | J14: 100 | Q14: 100 | R14: 500
A15: морковь | B15: г | K15: 12.5 | L15: 12.5 | Q15: 25 | R15: 125
A16: Мука пшеничная | B16: г | Q16: 0 | R16: 0
A17: Сахарный песок | B17: г | H17: 10 | J17: 6 | K17: 5 | O17: 8 | Q17: 29 | R17: 145
A18: сок фруктовый | B18: шт. | F18: 1 | Q18: 1 | R18: 5
A19: соль | B19: г | J19: 1 | K19: 0.5 | L19: 1.5 | N19: 1 | Q19: 4 | R19: 20
A20: томатная паста | B20: г | Q20: 0 | R20: 0
A21: Фарш из говядины | B21: г | M21: 15 | Q21: 15 | R21: 75
A22: Хлеб пшеничный | B22: г | C22: 20 | Q22: 20 | R22: 100
A23: хлеб ржано-пшенич. | B23: г | D23: 20 | Q23: 20 | R23: 100
A24: Яблоки | B24: г. | E24: 120 | Q24: 120 | R24: 600
A25: Кисель | B25: г. | H25: 24 | Q25: 24 | R25: 120
A26: Геркулес | B26: г. | J26: 44 | Q26: 44 | R26: 220
A27: лимон. Кислота | B27: г. | K27: 0.3 | Q27: 0.3 | R27: 1.5
A28: соус переменка | B28: г. | N28: 30 | Q28: 30 | R28: 150
A29: сыр | B29: г. | N29: 10.2 | Q29: 10.2 | R29: 51
A30: яйцо | B30: шт. | N30: 0.11 | Q30: 0.11 | R30: 0.55
A31: Чай | B31: г | O31: 1 | Q31: 1 | R31: 5
A32: Лимоны | B32: г | O32: 5.714 | Q32: 5.714 | R32: 28.57
A33: Печенье сдобное мягкое | B33: г | P33: 45 | Q33: 45 | R33: 225
Q34: 0 | R34: 0

Sheet 03.11.2021
A1: 3 Ноября 2021 среда
A2: Наименование продуктов | C2: хлеб пшеничный | D2: хлеб ржано-пшеничный | E2: фрукты | F2: сок фрукт. | G2: Батон | H2: Гуляш из говядины | I2: Каша гречневая вязк. | J2: каша вязк.полбяная | K2: салат пестрый | L2: суп картофельный с бобовыми | M2: Фрикадельки мясные | N2: грудка куриная отварные | O2: Чай с молоком | P2: Компот из св. плодов | Q2: печенье сдоб. Вкусное | R2: Итого на 1 человека | S2: Итого на 5 человек
A3: Батон | B3: г | G3: 25 | R3: =SUM(C3:Q3) -> 25 | S3: =R3*5 -> 125
A4: грудки курин. | B4: г | N4: 17.067 | R4: 17.067 | S4: =R4*5 -> 85.335
A5: Какао порошок | B5: г | R5: 0 | S5: 0
A6: капуста свежая | B6: г | R6: 0 | S6: 0
A7: Картофель св. | B7: г | L7: 66.5 | R7: 66.5 | S7: 332.5
A8: Клюква | B8: г | R8: 0 | S8: 0
A9: крупа рисовая | B9: г | R9: 0 | S9: 0
A10: Лук репчатый | B10: г | H10: 11.905 | L10: 11.905 | R10: 23.81 | S10: 119.05
A11: макаронные изделия(соломка | B11: г | R11: 0 | S11: 0
A12: Масло раст. | B12: г | H12: 5 | K12: 5 | L12: 5 | R12: 15 | S12: 75
A13: масло сливочное | B13: г | I13: 6.3 | J13: 5 | R13: 11.3 | S13: 56.5
A14: Молоко | B14: мл. | J14: 98.4 | O14: 50 | R14: 148.4 | S14: 742
A15: морковь | B15: г | L15: 12.5 | R15: 12.5 | S15: 62.5
A16: Мука пшеничная | B16: г | H16: 2 | R16: 2 | S16: 10
A17: Сахарный песок | B17: г | J17: 2 | K17: 2.5 | O17: 8 | P17: 10 | R17: 22.5 | S17: 112.5
A18: сок фруктовый | B18: шт. | F18: 1 | R18: 1 | S18: 5
A19: соль | B19: г | H19: 1 | I19: 1.8 | J19: 1 | L19: 1.5 | N19: 0.33 | R19: 5.63 | S19: 28.15
A20: томатная паста | B20: г | H20: 3.2 | R20: 3.2 | S20: 16
A21: Фарш из говядины | B21: г | R21: 0 | S21: 0
A22: Хлеб пшеничный | B22: г | C22: 20 | R22: 20 | S22: 100
A23: хлеб ржано-пшенич. | B23: г | D23: 20 | R23: 20 | S23: 100
A24: Яблоки | B24: г. | E24: 120 | K24: 39 | P24: 22.7 | R24: 181.7 | S24: 908.5
A25: Кисель | B25: г. | R25: 0 | S25: 0
A26: Геркулес | B26: г. | R26: 0 | S26: 0
A27: лимон. Кислота | B27: г. | R27: 0 | S27: 0
A28: соус переменка | B28: г. | R28: 0 | S28: 0
A29: сыр | B29: г. | R29: 0 | S29: 0
A30: яйцо | B30: шт. | R30: 0 | S30: 0
A31: Чай | B31: г | O31: 1 | R31: 1 | S31: 5
A32: Лимоны | B32: г | R32: 0 | S32: 0
A33: Печенье сдобное мягкое | B33: г | R33: 0 | S33: 0
A34: говядина лопат.отруб | B34: г | H34: 79 | R34: 79 | S34: 395
A35: лавровый лист | B35: г | H35: 0.01 | R35: =SUM(C35:Q35) -> 0.01 | S35: 0.05
A36: Крупа полбяная | B36: г | J36: 44.4 | R36: 44.4 | S36: 222
A37: Свекла свежая | B37: г | K37: 85.069 | R37: 85.069 | S37: 425.345
A38: Горох лущеный | B38: г | L38: 20.25 | R38: 20.25 | S38: 101.25
A39: Крупа гречневая | B39: г | I39: 43.65 | R39: 43.65 | S39: 218.25
A40: Печенье сдобное Вкусное | B40: г | Q40: 45 | R40: 45 | S40: 225

Sheet 04.11.2021
A1: 4 Ноября 2021 четверг
A2: Наименование продуктов | C2: хлеб пшеничный | D2: хлеб ржано-пшеничный | E2: фрукты | F2: сок фрукт. | G2: Батон | H2: запеканка картофельная с мясом | I2: Каша пшенная молоч. вязк. | J2: салат из моркови с яблоком | K2: суп картофельный с крупой | L2: Фрикадельки мясные | M2: грудка куриная отварные | N2: Чай с сахаром | O2: Компот из зам.вишни | P2: печенье сдоб. Мягкое | Q2: Итого на 1 человека | R2: Итого на 5 человек
A3: Батон | B3: г | G3: 25 | Q3: =SUM(C3:P3) -> 25 | R3: =Q3*5 -> 125
A4: грудки курин. | B4: г | M4: 51.2 | Q4: 51.2 | R4: =Q4*5 -> 256
A5: Какао порошок | B5: г | Q5: 0 | R5: 0
A6: капуста свежая | B6: г | K6: 37.5 | Q6: 37.5 | R6: 187.5
A7: Картофель св. | B7: г | H7: 202.16 | K7: 33.25 | Q7: 235.41 | R7: 1177.05
A8: Клюква | B8: г | Q8: 0 | R8: 0
A9: крупа рисовая | B9: г | Q9: 0 | R9: 0
A10: Лук репчатый | B10: г | H10: 18.1 | K10: 11.905 | Q10: 30.005 | R10: 150.025
A11: макаронные изделия(соломка | B11: г | Q11: 0 | R11: 0
A12: Масло раст. | B12: г | H12: 7.6 | J12: 10 | K12: 5 | Q12: 22.6 | R12: 113
A13: масло сливочное | B13: г | H13: 5 | I13: 5 | Q13: 10 | R13: 50
A14: Молоко | B14: мл. | I14: 100 | Q14: 100 | R14: 500
A15: морковь | B15: г | J15: 87.5 | K15: 12.5 | Q15: 100 | R15: 500
A16: Мука пшеничная | B16: г | Q16: 0 | R16: 0
A17: Сахарный песок | B17: г | I17: 6 | J17: 2 | N17: 8 | O17: 10 | Q17: 26 | R17: 130
A18: сок фруктовый | B18: шт. | F18: 1 | Q18: 1 | R18: 5
A19: соль | B19: г | H19: 1.9 | I19: 1 | K19: 1.75 | M19: 1 | Q19: 5.65 | R19: 28.25
A20: томатная паста | B20: г | Q20: 0 | R20: 0
A21: Фарш из говядины | B21: г | H21: 55.7 | Q21: 55.7 | R21: 278.5
A22: Хлеб пшеничный | B22: г | C22: 30 | Q22: 30 | R22: 150
A23: хлеб ржано-пшенич. | B23: г | D23: 30 | Q23: 30 | R23: 150
A24: Яблоки | B24: г. | E24: 120 | J24: 23 | Q24: 143 | R24: 715
A25: Кисель | B25: г. | Q25: 0 | R25: 0
A26: Геркулес | B26: г. | Q26: 0 | R26: 0
A27: лимон. Кислота | B27: г. | Q27: 0 | R27: 0
A28: соус переменка | B28: г. | Q28: 0 | R28: 0
A29: сыр | B29: г. | Q29: 0 | R29: 0
A30: яйцо | B30: шт. | Q30: 0 | R30: 0
A31: Чай | B31: г | N31: 1 | Q31: 1 | R31: 5
A32: Лимоны | B32: г | Q32: 0 | R32: 0
A33: Печенье сдобное мягкое | B33: г | P33: 45 | Q33: 45 | R33: 225
A34: говядина лопат.отруб | B34: г | Q34: 0 | R34: 0
A35: лавровый лист | B35: г | Q35: =SUM(C35:P35) -> 0 | R35: 0
A36: Крупа полбяная | B36: г | Q36: 0 | R36: 0
A37: Свекла свежая | B37: г | Q37: 0 | R37: 0
A38: Горох лущеный | B38: г | Q38: 0 | R38: 0
A39: Крупа гречневая | B39: г | Q39: 0 | R39: 0
A40: Печенье сдобное Вкусное | B40: г | Q40: 0 | R40: 0
A41: Сухари панировачные | B41: г | H41: 1.9 | Q41: 1.9 | R41: 9.5
A42: Паприка | B42: г | H42: 0.38 | Q42: 0.38 | R42: 1.9
A43: Крупа пшено | B43: г | I43: 50 | K43: 5 | Q43: 55 | R43: 275
A44: Вишня заморож | B44: г | O44: 15 | Q44: 15 | R44: 75

Sheet 05.11.2021
A1: 5 Ноября 2021 пятница
A2: Наименование продуктов | C2: хлеб пшеничный | D2: хлеб ржано-пшеничный | E2: фрукты | F2: сок фрукт. | G2: Бутерброд с сыром | H2: Какао с молоком | I2: Каша пшеничная молоч. вязк. | J2: салат Витаминный | K2: Борщ с капустой и картофелем | L2: Фрикадельки мясныедля супов | M2: Плов из птицы | N2: Напиток лимонный | O2: Сметана | P2: печенье сдоб. Вкусное | Q2: Итого на 1 человека | R2: Итого на 5 человек
A3: Батон | B3: г | G3: 30 | Q3: =SUM(C3:P3) -> 30 | R3: =Q3*5 -> 150
A4: грудки курин. | B4: г | M4: 90.667 | Q4: 90.667 | R4: =Q4*5 -> 453.335
A5: Какао порошок | B5: г | H5: 4 | Q5: 4 | R5: 20
A6: капуста свежая | B6: г | J6: 70 | K6: 25 | Q6: 95 | R6: 475
A7: Картофель св. | B7: г | K7: 26.6 | Q7: 26.6 | R7: 133
A8: Клюква | B8: г | Q8: 0 | R8: 0
A9: крупа рисовая | B9: г | M9: 70 | Q9: 70 | R9: 350
A10: Лук репчатый | B10: г | K10: 11.905 | M10: 16.667 | Q10: 28.572 | R10: 142.86
A11: макаронные изделия(соломка | B11: г | Q11: 0 | R11: 0
A12: Масло раст. | B12: г | J12: 5 | K12: 5 | M12: 14 | Q12: 24 | R12: 120
A13: масло сливочное | B13: г | I13: 5 | Q13: 5 | R13: 25
A14: Молоко | B14: мл. | H14: 100 | I14: 100 | Q14: 200 | R14: 1000
A15: морковь | B15: г | J15: 20 | K15: 12.5 | M15: 20 | Q15: 52.5 | R15: 262.5
A16: Мука пшеничная | B16: г | Q16: 0 | R16: 0
A17: Сахарный песок | B17: г | H17: 20 | I17: 6 | J17: 5 | K17: 2.5 | N17: 24 | Q17: 57.5 | R17: 287.5
A18: сок фруктовый | B18: шт. | F18: 1 | Q18: 1 | R18: 5
A19: соль | B19: г | I19: 1 | J19: 0.5 | K19: 1.5 | M19: 1.5 | Q19: 4.5 | R19: 22.5
A20: томатная паста | B20: г | K20: 3 | M20: 4 | Q20: 7 | R20: 35
A21: Фарш из говядины | B21: г | L21: 15 | Q21: 15 | R21: 75
A22: Хлеб пшеничный | B22: г | C22: 20 | Q22: 20 | R22: 100
A23: хлеб ржано-пшенич. | B23: г | D23: 20 | Q23: 20 | R23: 100
A24: Яблоки | B24: г. | E24: 120 | J24: 28 | Q24: 148 | R24: 740
A25: Кисель | B25: г. | Q25: 0 | R25: 0
A26: Геркулес | B26: г. | Q26: 0 | R26: 0
A27: лимон. Кислота | B27: г. | J27: 0.2 | Q27: 0.2 | R27: 1
A28: соус переменка | B28: г. | Q28: 0 | R28: 0
A29: сыр | B29: г. | G29: 20.4 | Q29: 20.4 | R29: 102
A30: яйцо | B30: шт. | Q30: 0 | R30: 0
A31: Чай | B31: г | Q31: 0 | R31: 0
A32: Лимоны | B32: г | N32: 16 | Q32: 16 | R32: 80
A33: Печенье сдобное мягкое | B33: г | Q33: 0 | R33: 0
A34: говядина лопат.отруб | B34: г | Q34: 0 | R34: 0
A35: лавровый лист | B35: г | K35: 0.01 | Q35: =SUM(C35:P35) -> 0.01 | R35: 0.05
A36: Крупа полбяная | B36: г | Q36: 0 | R36: 0
A37: Свекла свежая | B37: г | K37: 51.2 | Q37: 51.2 | R37: 256
A38: Горох лущеный | B38: г | Q38: 0 | R38: 0
A39: Крупа гречневая | B39: г | Q39: 0 | R39: 0
A40: Печенье сдобное Вкусное | B40: г | P40: 45 | Q40: 45 | R40: 225
A41: Сухари панировачные | B41: г | Q41: 0 | R41: 0
A42: Паприка | B42: г | Q42: 0 | R42: 0
A43: Крупа пшено | B43: г | Q43: 0 | R43: 0
A44: Вишня заморож | B44: г | Q44: 0 | R44: 0
A45: Крупа пшеничная | B45: г | I45: 50 | Q45: 50 | R45: 250
A46: Сметана | B46: г | O46: 5 | Q46: 5 | R46: 25

Sheet 06.11.2021
A1: 6 Ноября 2021 суббота
A2: Наименование продуктов | C2: хлеб пшеничный | D2: хлеб ржано-пшеничный | E2: фрукты | F2: сок фрукт. | G2: Бутерброд с сыром | H2: Макаронные изделия | I2: Каша пшеннная молоч. вязк. | J2: Винегрет овощной | K2: Суп из овощей | L2: Ёжики мясные с рисом в томат. Соусе | M2: Грудки куриные отварные | N2: Напиток из шиповника | O2: Чай с сахаром,лимоном | P2: Сметана | Q2: печенье сдоб. Мягкое | R2: Итого на 1 человека | S2: Итого на 5 человек
A3: Батон | B3: г | G3: 25 | R3: =SUM(C3:Q3) -> 25 | S3: =R3*5 -> 125
A4: грудки курин. | B4: г | M4: 17.067 | R4: 17.067 | S4: =R4*5 -> 85.335
A5: Какао порошок | B5: г | R5: 0 | S5: 0
A6: капуста свежая | B6: г | K6: 25 | R6: 25 | S6: 125
A7: Картофель св. | B7: г | J7: 38.743 | K7: 66.5 | R7: 105.243 | S7: 526.215
A8: Клюква | B8: г | R8: 0 | S8: 0
A9: крупа рисовая | B9: г | R9: 0 | S9: 0
A10: Лук репчатый | B10: г | K10: 11.905 | L10: 0.952 | R10: 12.857 | S10: 64.285
A11: макаронные изделия | B11: г | H11: 61.11 | R11: 61.11 | S11: 305.55
A12: Масло раст. | B12: г | J12: 10 | K12: 5 | L12: 4.04 | R12: 19.04 | S12: 95.2
A13: масло сливочное | B13: г | G13: 10 | H13: 6.3 | I13: 5 | R13: 21.3 | S13: 106.5
A14: Молоко | B14: мл. | I14: 100 | R14: 100 | S14: 500
A15: морковь | B15: г | J15: 12.5 | K15: 12.5 | L15: 3 | R15: 28 | S15: 140
A16: Мука пшеничная | B16: г | L16: 1.8 | R16: 1.8 | S16: 9
A17: Сахарный песок | B17: г | I17: 6 | L17: 0.4 | N17: 10 | O17: 8 | R17: 24.4 | S17: 122
A18: сок фруктовый | B18: шт. | F18: 1 | R18: 1 | S18: 5
A19: соль | B19: г | H19: 1.8 | I19: 1 | J19: 0.5 | K19: 1.5 | L19: 0.4 | M19: 0.33 | R19: 5.53 | S19: 27.65
A20: томатная паста | B20: г | L20: 4 | R20: 4 | S20: 20
A21: Фарш из говядины | B21: г | R21: 0 | S21: 0
A22: Хлеб пшеничный | B22: г | C22: 20 | R22: 20 | S22: 100
A23: хлеб ржано-пшенич. | B23: г | D23: 25 | R23: 25 | S23: 125
A24: Яблоки | B24: г. | E24: 120 | R24: 120 | S24: 600
A25: Кисель | B25: г. | R25: 0 | S25: 0
A26: Геркулес | B26: г. | R26: 0 | S26: 0
A27: лимон. Кислота | B27: г. | R27: 0 | S27: 0
A28: соус переменка | B28: г. | R28: 0 | S28: 0
A29: сыр | B29: г. | G29: 20.4 | R29: 20.4 | S29: 102
A30: яйцо | B30: шт. | R30: 0 | S30: 0
A31: Чай | B31: г | O31: 1 | R31: 1 | S31: 5
A32: Лимоны | B32: г | O32: 10.29 | R32: 10.29 | S32: 51.45
A33: Печенье сдобное мягкое | B33: г | Q33: 45 | R33: 45 | S33: 225
A34: говядина лопат.отруб | B34: г | R34: 0 | S34: 0
A35: лавровый лист | B35: г | K35: 0.01 | R35: =SUM(C35:Q35) -> 0.01 | S35: 0.05
A36: Крупа полбяная | B36: г | R36: 0 | S36: 0
A37: Свекла свежая | B37: г | J37: 28.8 | R37: 28.8 | S37: 144
A38: Горох лущеный | B38: г | R38: 0 | S38: 0
A39: Крупа гречневая | B39: г | R39: 0 | S39: 0
A40: Печенье сдобное Вкусное | B40: г | R40: 0 | S40: 0
A41: Сухари панировачные | B41: г | R41: 0 | S41: 0
A42: Паприка | B42: г | R42: 0 | S42: 0
A43: Крупа пшено | B43: г | I43: 50 | R43: 50 | S43: 250
A44: Вишня заморож | B44: г | R44: 0 | S44: 0
A45: Крупа пшеничная | B45: г | R45: 0 | S45: 0
A46: Сметана | B46: г | P46: 5 | R46: 5 | S46: 25
A47: Ёжики мясные | B47: шт. | L47: 1 | R47: 1 | S47: 5
A48: шиповник растворимый | B48: г | N48: 3 | R48: 3 | S48: 15
A49: Огурцы соленые 3л. | B49: г | J49: 54.6 | R49: 54.6 | S49: 273
A50: Зеленый горошек | B50: г | K50: 11.549 | R50: 11.549 | S50: 57.745

Sheet 07.11.2021
A1: 7 Ноября 2021 воскресенье
A2: Наименование продуктов | C2: хлеб пшеничный | D2: хлеб ржано-пшеничный | E2: фрукты | F2: сок фрукт. | G2: Батон | H2: Макаронные изделия | I2: Каша рисовая молоч. вязк. | J2: Салат из белокачанной капусты | K2: Суп Картофельный с вермишелью | L2: Фрикадельки мясные для супов | M2: Рагу из птицы | N2: Компот из св. плодов | O2: Чай с молоком | P2: Сметана | Q2: печенье сдоб. Вкусное | R2: Итого на 1 человека | S2: Итого на 5 человек
A3: Батон | B3: г | G3: 25 | R3: =SUM(C3:Q3) -> 25 | S3: =R3*5 -> 125
A4: грудки курин. | B4: г | M4: 90.667 | R4: 90.667 | S4: =R4*5 -> 453.335
A5: Какао порошок | B5: г | R5: 0 | S5: 0
A6: капуста свежая | B6: г | J6: 98.625 | R6: 98.625 | S6: 493.125
A7: Картофель св. | B7: г | K7: 99.75 | M7: 170.24 | R7: 269.99 | S7: 1349.95
A8: Клюква | B8: г | R8: 0 | S8: 0
A9: крупа рисовая | B9: г | I9: 44 | R9: 44 | S9: 220
A10: Лук репчатый | B10: г | K10: 11.905 | M10: 19.048 | R10: 30.953 | S10: 154.765
A11: макаронные изделия соломка | B11: г | K11: 10 | R11: 10 | S11: 50
A12: Масло раст. | B12: г | J12: 5 | K12: 2.5 | M12: 8.4 | R12: 15.9 | S12: 79.5
A13: масло сливочное | B13: г | I13: 5 | R13: 5 | S13: 25
A14: Молоко | B14: мл. | I14: 100 | O14: 50 | R14: 150 | S14: 750
A15: морковь | B15: г | J15: 12.5 | K15: 12.5 | M15: 34 | R15: 59 | S15: 295
A16: Мука пшеничная | B16: г | M16: 1.6 | R16: 1.6 | S16: 8
A17: Сахарный песок | B17: г | I17: 6 | J17: 5 | N17: 10 | O17: 8 | R17: 29 | S17: 145
A18: сок фруктовый | B18: шт. | F18: 1 | R18: 1 | S18: 5
A19: соль | B19: г | I19: 1 | J19: 0.5 | K19: 1.5 | M19: 2 | R19: 5 | S19: 25
A20: томатная паста | B20: г | M20: 3.84 | R20: 3.84 | S20: 19.2
A21: Фарш из говядины | B21: г | L21: 30 | R21: 30 | S21: 150
A22: Хлеб пшеничный | B22: г | C22: 20 | R22: 20 | S22: 100
A23: хлеб ржано-пшенич. | B23: г | D23: 20 | R23: 20 | S23: 100
A24: Яблоки | B24: г. | E24: 120 | N24: 22.7 | R24: 142.7 | S24: 713.5
A25: Кисель | B25: г. | R25: 0 | S25: 0
A26: Геркулес | B26: г. | R26: 0 | S26: 0
A27: лимон. Кислота | B27: г. | J27: 0.3 | R27: 0.3 | S27: 1.5
A28: соус переменка | B28: г. | R28: 0 | S28: 0
A29: сыр | B29: г. | R29: 0 | S29: 0
A30: яйцо | B30: шт. | R30: 0 | S30: 0
A31: Чай | B31: г | O31: 1 | R31: 1 | S31: 5
A32: Лимоны | B32: г | R32: 0 | S32: 0
A33: Печенье сдобное мягкое | B33: г | R33: 0 | S33: 0
A34: говядина лопат.отруб | B34: г | R34: 0 | S34: 0
A35: лавровый лист | B35: г | R35: =SUM(C35:Q35) -> 0 | S35: 0
A36: Крупа полбяная | B36: г | R36: 0 | S36: 0
A37: Свекла свежая | B37: г | R37: 0 | S37: 0
A38: Горох лущеный | B38: г | R38: 0 | S38: 0
A39: Крупа гречневая | B39: г | R39: 0 | S39: 0
A40: Печенье сдобное Вкусное | B40: г | Q40: 60 | R40: 60 | S40: 300
A41: Сухари панировачные | B41: г | R41: 0 | S41: 0
A42: Паприка | B42: г | R42: 0 | S42: 0
A43: Крупа пшено | B43: г | R43: 0 | S43: 0
A44: Вишня заморож | B44: г | R44: 0 | S44: 0
A45: Крупа пшеничная | B45: г | R45: 0 | S45: 0
A46: Сметана | B46: г | R46: 0 | S46: 0
A47: Ёжики мясные | B47: шт. | R47: 0 | S47: 0
A48: шиповник растворимый | B48: г | R48: 0 | S48: 0
A49: Огурцы соленые 3л. | B49: г | R49: 0 | S49: 0
A50: Зеленый горошек | B50: г | R50: 0 | S50: 0

Sheet Всего с 01-07.11.21
A1: Расход продуктов с 01 по 07 Ноября 2021 Осенний лагерь
A2: Наименование продуктов | C2: 01 ноября | D2: 02 ноября | E2: 03 ноября | F2: 04 ноября | G2: 05 ноября | H2: 06 ноября | I2: 07 ноября | J2: Итого на 1 человека | K2: Итого на 5 человек
A3: Батон | B3: г | C3: 30 | D3: 25 | E3: 25 | F3: 25 | G3: 30 | H3: 25 | I3: 25 | J3: =SUM(C3:I3) -> 185 | K3: =J3*5 -> 925
A4: грудки курин. | B4: г | C4: 17.067 | D4: 107 | E4: 17.067 | F4: 51.2 | G4: 90.667 | H4: 17.067 | I4: 90.667 | J4: 390.735 | K4: =J4*5 -> 1953.675
A5: Какао порошок | B5: г | C5: 4 | D5: 0 | E5: 0 | F5: 0 | G5: 4 | H5: 0 | I5: 0 | J5: 8 | K5: 40
A6: капуста свежая | B6: г | C6: 62.5 | D6: 98.625 | E6: 0 | F6: 37.5 | G6: 95 | H6: 25 | I6: 98.625 | J6: 417.25 | K6: 2086.25
A7: Картофель св. | B7: г | C7: 39.9 | D7: 258.02 | E7: 66.5 | F7: 235.41 | G7: 26.6 | H7: 105.243 | I7: 269.99 | J7: 1001.663 | K7: 5008.315
A8: Клюква | B8: г | C8: 15 | D8: 0 | E8: 0 | F8: 0 | G8: 0 | H8: 0 | I8: 0 | J8: 15 | K8: 75
A9: крупа рисовая | B9: г | C9: 44 | D9: 0 | E9: 0 | F9: 0 | G9: 70 | H9: 0 | I9: 44 | J9: 158 | K9: 790
A10: Лук репчатый | B10: г | C10: 40.881 | D10: 11.905 | E10: 23.81 | F10: 30.005 | G10: 28.572 | H10: 12.857 | I10: 30.953 | J10: 178.983 | K10: 894.915
A11: макаронные изделия соломка | B11: г | C11: 61.11 | D11: 10 | E11: 0 | F11: 0 | G11: 0 | H11: 61.11 | I11: 10 | J11: 142.22 | K11: 711.1
A12: Масло раст. | B12: г | C12: 24.55 | D12: 7.5 | E12: 15 | F12: 22.6 | G12: 24 | H12: 19.04 | I12: 15.9 | J12: 128.59 | K12: 642.95
A13: масло сливочное | B13: г | C13: 26.3 | D13: 8 | E13: 11.3 | F13: 10 | G13: 5 | H13: 21.3 | I13: 5 | J13: 86.9 | K13: 434.5
A14: Молоко | B14: мл. | C14: 200 | D14: 100 | E14: 148.4 | F14: 100 | G14: 200 | H14: 100 | I14: 150 | J14: 998.4 | K14: 4992
A15: морковь | B15: г | C15: 117.5 | D15: 25 | E15: 12.5 | F15: 100 | G15: 52.5 | H15: 28 | I15: 59 | J15: 394.5 | K15: 1972.5
A16: Мука пшеничная | B16: г | C16: 6.92 | D16: 0 | E16: 2 | F16: 0 | G16: 0 | H16: 1.8 | I16: 1.6 | J16: 12.32 | K16: 61.6
A17: Сахарный песок | B17: г | C17: 46.5 | D17: 29 | E17: 22.5 | F17: 26 | G17: 57.5 | H17: 24.4 | I17: 29 | J17: 234.9 | K17: 1174.5
A18: сок фруктовый | B18: шт. | C18: 1 | D18: 1 | E18: 1 | F18: 1 | G18: 1 | H18: 1 | I18: 1 | J18: 7 | K18: 35
A19: соль | B19: г | C19: 6.73 | D19: 4 | E19: 5.63 | F19: 5.65 | G19: 4.5 | H19: 5.53 | I19: 5 | J19: 37.04 | K19: 185.2
A20: томатная паста | B20: г | C20: 6 | D20: 0 | E20: 3.2 | F20: 0 | G20: 7 | H20: 4 | I20: 3.84 | J20: 24.04 | K20: 120.2
A21: Фарш из говядины | B21: г | C21: 44.3 | D21: 15 | E21: 0 | F21: 55.7 | G21: 15 | H21: 0 | I21: 30 | J21: 160 | K21: 800
A22: Хлеб пшеничный | B22: г | C22: 29.32 | D22: 20 | E22: 20 | F22: 30 | G22: 20 | H22: 20 | I22: 20 | J22: 159.32 | K22: 796.6
A23: хлеб ржано-пшенич. | B23: г | C23: 20 | D23: 20 | E23: 20 | F23: 30 | G23: 20 | H23: 25 | I23: 20 | J23: 155 | K23: 775
A24: Яблоки | B24: г. | C24: 120 | D24: 120 | E24: 181.7 | F24: 143 | G24: 148 | H24: 120 | I24: 142.7 | J24: 975.4 | K24: 4877
A25: Кисель | B25: г. | C25: 0 | D25: 24 | E25: 0 | F25: 0 | G25: 0 | H25: 0 | I25: 0 | J25: 24 | K25: 120
A26: Геркулес | B26: г. | D26: 44 | E26: 0 | F26: 0 | G26: 0 | H26: 0 | I26: 0 | J26: 44 | K26: 220
A27: лимон. Кислота | B27: г. | D27: 0.3 | E27: 0 | F27: 0 | G27: 0.2 | H27: 0 | I27: 0.3 | J27: 0.8 | K27: 4
A28: соус переменка | B28: г. | D28: 30 | E28: 0 | F28: 0 | G28: 0 | H28: 0 | I28: 0 | J28: 30 | K28: 150
A29: сыр | B29: г. | D29: 10.2 | E29: 0 | F29: 0 | G29: 20.4 | H29: 20.4 | I29: 0 | J29: 51 | K29: 255
A30: яйцо | B30: шт. | D30: 0.11 | E30: 0 | F30: 0 | G30: 0 | H30: 0 | I30: 0 | J30: 0.11 | K30: 0.55
A31: Чай | B31: г | D31: 1 | E31: 1 | F31: 1 | G31: 0 | H31: 1 | I31: 1 | J31: 5 | K31: 25
A32: Лимоны | B32: г | D32: 5.714 | E32: 0 | F32: 0 | G32: 16 | H32: 10.29 | I32: 0 | J32: 32.004 | K32: 160.02
A33: Печенье сдобное мягкое | B33: г | D33: 45 | E33: 0 | F33: 45 | G33: 0 | H33: 45 | I33: 0 | J33: 135 | K33: 675
A34: говядина лопат.отруб | B34: г | D34: 0 | E34: 79 | F34: 0 | G34: 0 | H34: 0 | I34: 0 | J34: 79 | K34: 395
A35: лавровый лист | B35: г | E35: 0.01 | F35: 0 | G35: 0.01 | H35: 0.01 | I35: 0 | J35: 0.03 | K35: 0.15
A36: Крупа полбяная | B36: г | E36: 44.4 | F36: 0 | G36: 0 | H36: 0 | I36: 0 | J36: 44.4 | K36: 222
A37: Свекла свежая | B37: г | E37: 85.069 | F37: 0 | G37: 51.2 | H37: 28.8 | I37: 0 | J37: 165.069 | K37: 825.345
A38: Горох лущеный | B38: г | E38: 20.25 | F38: 0 | G38: 0 | H38: 0 | I38: 0 | J38: 20.25 | K38: 101.25
A39: Крупа гречневая | B39: г | E39: 43.65 | F39: 0 | G39: 0 | H39: 0 | I39: 0 | J39: 43.65 | K39: 218.25
A40: Печенье сдобное Вкусное | B40: г | C40: 45 | E40: 45 | F40: 0 | G40: 45 | H40: 0 | I40: 60 | J40: 195 | K40: 975
A41: Сухари панировачные | B41: г | F41: 1.9 | G41: 0 | H41: 0 | I41: 0 | J41: 1.9 | K41: 9.5
A42: Паприка | B42: г | F42: 0.38 | G42: 0 | H42: 0 | I42: 0 | J42: 0.38 | K42: 1.9
A43: Крупа пшено | B43: г | F43: 55 | G43: 0 | H43: 50 | I43: 0 | J43: 105 | K43: 525
A44: Вишня заморож | B44: г | F44: 15 | G44: 0 | H44: 0 | I44: 0 | J44: 15 | K44: 75
A45: Крупа пшеничная | B45: г | G45: 50 | H45: 0 | I45: 0 | J45: 50 | K45: 250
A46: Сметана | B46: г | G46: 5 | H46: 5 | I46: 0 | J46: 10 | K46: 50
A47: Ёжики мясные | B47: шт. | H47: 1 | I47: 0 | J47: 1 | K47: 5
A48: шиповник растворимый | B48: г | H48: 3 | I48: 0 | J48: 3 | K48: 15
A49: Огурцы соленые 3л. | B49: г | H49: 54.6 | I49: 0 | J49: 54.6 | K49: 273
A50: Зеленый горошек | B50: г | H50: 11.549 | I50: 0 | J50: 11.549 | K50: 57.745

Sheet Меню 01.11.21
A1: Муниципальное бюджетное общеобразовательное учреждение
A2: «Ульянковская основная общеобразовательная школа
A3: Кайбицкого муниципального района Республики Татарстан»
A5: Утверждаю
A6: Директор школы: Н.А.Челнокова
A7: МЕНЮ НА 01.11.2021 г.
A9: в оздоровительных (пришкольных) лагерях дневного пребывания в смену для учащихся с 11 лет и старше в столовых школ РТ
A11: № | C11: Наименование блюд | D11: Выход | E11: Ккал
C12: Завтрак
A13: 1 | B13: №338/2015 | C13: Плоды и ягоды свежие (яблоки) | D13: 120 | E13: 60.66
A14: 2 | B14: №15/2016 | C14: Бутерброд с маслом | D14: 30/15 | E14: 177
A15: 3 | B15: №173/2015 | C15: Каша вязкая молочная из рисовой крупы с маслом сливочным | D15: 200/5 | E15: 258
A16: 4 | B16: №685/2004 | C16: Какао с молоком | D16: 200 | E16: 145
C17: 2-й завтрак
A18: 5 | B18: №389/2015 | C18: Сок фруктовый в ассортименте (пакетир) | D18: 1/200 | E18: 88
C19: Обед
A20: 6 | B20: №71/2015 | C20: Салат из моркови ссахаром | D20: 100 | E20: 14
A21: 7 | B21: №58/2015 | C21: Щи из свежей капусты с куринными грудками | D21: 250/10 | E21: 158
A22: 8 | B22: ТТК 2021 | C22: Тефтели из говядины в соусе томатном (п/ф) | D22: 70/50 | E22: 246
A23: 9 | B23: №202/2015 | C23: Макароны твердых сортов отварные | D23: 180 | E23: 248
A24: 10 | B24: ТТК2016 | C24: Компот из замороженной клюквы | D24: 200 | E24: 40
A25: 11 | B25: ТТК | C25: Печенье сдобное Вкусное | D25: 3 шт./45 | E25: 199
A26: 12 | C26: Хлеб ржано-пшеничный | D26: 20 | E26: 44
A27: 13 | C27: Хлеб пшеничный | D27: 20 | E27: 47
C28: ВСЕГО на 1 ученика: | D28: 148.99 ₽ | E28: =SUM(E13:E27) -> 1724.66

Sheet Меню 02.11.21
A1: Муниципальное бюджетное общеобразовательное учреждение
A2: «Ульянковская основная общеобразовательная школа
A3: Кайбицкого муниципального района Республики Татарстан»
A5: Утверждаю
A6: Директор школы Н.А.Челнокова
A7: МЕНЮ НА 02.11.2021 г.
A9: в оздоровительных (пришкольных) лагерях дневного пребывания в смену для учащихся с 11 лет и старше в столовых школ РТ
A11: № | C11: Наименование блюд | D11: Выход | E11: Ккал
C12: Завтрак
A13: 1 | B13: №338/2015 | C13: Плоды и ягоды свежие (яблоки) | D13: 120 | E13: 65.24
A14: 2 | B14: №175/2015 | C14: Каша вязкая молочная из геркулесовой крупы с маслом сливочным | D14: 200/5 | E14: 266
A15: 3 | B15: № 382/2015 | C15: Чай с сахаром, лимоном | D15: 200/5 | E15: 34
A16: 4 | C16: Батон | D16: 25 | E16: 66
C17: 2-й завтрак
A18: 5 | B18: №389/2015 | C18: Сок фруктовый в ассортименте (пакетир) | D18: 1/200 | E18: 88
C19: Обед
A20: 6 | B20: №71/2015 | C20: Салат из свежей капусты | D20: 100 | E20: 91
A21: 7 | B21: № 96/2015 | C21: Суп картофельный с вермишелью с мясными фрикадельками | D21: 250/11 | E21: 144
A22: 8 | B22: №260/2015 | C22: Грудки куриные (филе) по-французски | D22: 220 | E22: 662.8
A23: 9 | B23: № 639/2004 | C23: Кисель | D23: 200 | E23: 53
A24: 10 | B24: ТТК | C24: Печенье сдобное Мягкое | D24: 3 шт./45 | E24: 181
A25: 11 | C25: Хлеб ржано-пшеничный | D25: 20 | E25: 41
A26: 12 | C26: Хлеб пшеничный | D26: 20 | E26: 47
C27: ВСЕГО на 1 ученика: | D27: 148.99 ₽ | E27: =SUM(E13:E26) -> 1739.04

Sheet Меню 03.11.21
A1: Муниципальное бюджетное общеобразовательное учреждение
A2: «Ульянковская основная общеобразовательная школа
A3: Кайбицкого муниципального района Республики Татарстан»
A5: Утверждаю
A6: Директор школы Н.А.Челнокова
A7: МЕНЮ НА 03.11.2021 г.
A9: в оздоровительных (пришкольных) лагерях дневного пребывания в смену для учащихся с 11 лет и старше в столовых школ РТ
A11: № | C11: Наименование блюд | D11: Выход | E11: Ккал
C12: Завтрак
A13: 1 | B13: №338/2015 | C13: Плоды и ягоды свежие (яблоки) | D13: 120 | E13: 60.58
A14: 2 | B14: №173/2015 | C14: Каша вязкая молочная из полбяной крупы с маслом сливочным | D14: 200/5 | E14: 208
A15: 3 | B15: № 685/2004 | C15: Чай с молоком | D15: 200 | E15: 62
A16: 4 | C16: Батон | D16: 25 | E16: 66
C17: 2-й завтрак
A18: 5 | B18: №389/2015 | C18: Сок фруктовый в ассортименте (пакетир) | D18: 1/200 | E18: 88
C19: Обед
A20: 6 | B20: №23/2015 | C20: Салат пестрый | D20: 100 | E20: 63
A21: 7 | B21: № 82/2015 | C21: Суп картофельный с бобовыми (горох) с куриными грудками | D21: 250/10 | E21: 141.03
A22: 8 | B22: ТТК 2019 | C22: Гуляш из говядины | D22: 50/50 | E22: 515.6
A23: 9 | B23: № 304/2015 | C23: Каша гречневая вязкая | D23: 180 | E23: 231
A24: 10 | B24: ТТК 021 | C24: Компот из свежих плодов (Яблоки) | D24: 200 | E24: 49.3
A25: 11 | B25: ТТК | C25: Печенье сдобное Вкусное | D25: 3 шт./45 | E25: 199
A26: 12 | C26: Хлеб ржано-пшеничный | D26: 20 | E26: 41
A27: 13 | C27: Хлеб пшеничный | D27: 20 | E27: 47
C28: ВСЕГО на 1 ученика: | D28: 148.99 ₽ | E28: =SUM(E13:E27) -> 1771.51

Sheet Меню 04.11.21
A1: Муниципальное бюджетное общеобразовательное учреждение
A2: «Ульянковская основная общеобразовательная школа
A3: Кайбицкого муниципального района Республики Татарстан»
A5: Утверждаю
A6: Директор школы Н.А.Челнокова
A7: МЕНЮ НА 04.11.2021 г.
A9: в оздоровительных (пришкольных) лагерях дневного пребывания в смену для учащихся с 11 лет и старше в столовых школ РТ
A11: № | C11: Наименование блюд | D11: Выход | E11: Ккал
C12: Завтрак
A13: 1 | B13: №338/2015 | C13: Плоды и ягоды свежие (яблоки) | D13: 120 | E13: 56
A14: 2 | B14: №173/2015 | C14: Каша вязкая молочная из пшенной крупы с маслом сливочным | D14: 200/5 | E14: 282
A15: 3 | B15: № 685/2004 | C15: Чай с сахаром | D15: 200 | E15: 32.15
A16: 4 | C16: Батон | D16: 25 | E16: 66
C17: 2-й завтрак
A18: 5 | B18: №389/2015 | C18: Сок фруктовый в ассортименте (пакетир) | D18: 1/200 | E18: 88
C19: Обед
A20: 6 | B20: №71/2015 | C20: Салат из моркови с яблоками | D20: 100 | E20: 132
A21: 7 | B21: № 102/2015 | C21: Суп картофельный ) с куриныи грудками | D21: 250/30 | E21: 125
A22: 8 | B22: ТТК 2016 | C22: Запеканка картофельная с мясом, маслом | D22: 190/5 | E22: 594.6
A23: 9 | B23: № 699/2004 | C23: Компот из замороженной вишни | D23: 200 | E23: 101
A24: 10 | B24: ТТК | C24: Печенье сдобное Мягкое | D24: 3 шт./45 | E24: 181
A25: 11 | C25: Хлеб ржано-пшеничный | D25: 30 | E25: 41
A26: 12 | C26: Хлеб пшеничный | D26: 30 | E26: 47
C27: ВСЕГО на 1 ученика: | D27: 148.99 ₽ | E27: =SUM(E13:E26) -> 1745.75

Sheet Меню 05.11.21
A1: Муниципальное бюджетное общеобразовательное учреждение
A2: «Ульянковская основная общеобразовательная школа
A3: Кайбицкого муниципального района Республики Татарстан»
A5: Утверждаю
A6: Директор школы Н.А.Челнокова
A7: МЕНЮ НА 05.11.2021 г.
A9: в оздоровительных (пришкольных) лагерях дневного пребывания в смену для учащихся с 11 лет и старше в столовых школ РТ
A11: № | C11: Наименование блюд | D11: Выход | E11: Ккал
C12: Завтрак
A13: 1 | B13: №338/2015 | C13: Плоды и ягоды свежие (яблоки) | D13: 120 | E13: 56
A14: 2 | B14: №3/2015 | C14: Бутерброд с сыром | D14: 30/20 | E14: 149
A15: 2 | B15: №173/2015 | C15: Каша вязкая молочная из пшеничной крупы с маслом сливочным | D15: 200/5 | E15: 275
A16: 3 | B16: № 382/2015 | C16: Какао с молоком | D16: 200 | E16: 152
C17: 2-й завтрак
A18: 4 | B18: №389/2015 | C18: Сок фруктовый в ассортименте (пакетир) | D18: 1/200 | E18: 88
C19: Обед
A20: 5 | B20: №53/2013 | C20: Салат Витаминный | D20: 100 | E20: 96
A21: 6 | B21: № 102/2015 | C21: Борщ из свежей капусты с мясными фрикадельками сметаной | D21: 250/11/5 | E21: 124
A22: 7 | B22: №291/2015 | C22: Плов из птицы (грудки куриные) | D22: 50/200 | E22: 524
A23: 8 | B23: №699/2004 | C23: Напиток лимонный | D23: 200 | E23: 48
A24: 9 | B24: ТТК | C24: Печенье сдобное Вкусное | D24: 3 шт./45 | E24: 199
A25: 10 | C25: Хлеб ржано-пшеничный | D25: 20 | E25: 41
A26: 11 | C26: Хлеб пшеничный | D26: 20 | E26: 47
C27: ВСЕГО на 1 ученика: | D27: 148.99 ₽ | E27: =SUM(E13:E26) -> 1799

Sheet Меню 06.11.21
A1: Муниципальное бюджетное общеобразовательное учреждение
A2: «Ульянковская основная общеобразовательная школа
A3: Кайбицкого муниципального района Республики Татарстан»
A5: Утверждаю
A6: Директор школы Н.А.Челнокова
A7: МЕНЮ НА 06.11.2021 г.
A9: в оздоровительных (пришкольных) лагерях дневного пребывания в смену для учащихся с 11 лет и старше в столовых школ РТ
A11: № | C11: Наименование блюд | D11: Выход | E11: Ккал
C12: Завтрак
A13: 1 | B13: №338/2015 | C13: Плоды и ягоды свежие (яблоки) | D13: 120 | E13: 70.5
A14: 2 | B14: №3/2015 | C14: Бутерброд с сыром с маслом | D14: 25/20/10 | E14: 201
A15: 2 | B15: №173/2015 | C15: Каша вязкая молочная из пшеннной крупы с маслом сливочным | D15: 200/5 | E15: 282
A16: 3 | B16: № 685/2004 | C16: Чай с сахаром, с лимоном | D16: 200/9 | E16: 35
C17: 2-й завтрак
A18: 4 | B18: №389/2015 | C18: Сок фруктовый в ассортименте (пакетир) | D18: 1/200 | E18: 88
C19: Обед
A20: 5 | B20: ТТК | C20: Винегрет овощной (без лука) | D20: 100 | E20: 129
A21: 6 | B21: № 99/2015 | C21: Суп из овощей скуриной грудкой, со сметаной | D21: 250/10/5 | E21: 128
A22: 7 | B22: ТТК 2016 | C22: Ёжики мясные с рисом в соусе томатном (п/ф) | D22: 60/40 | E22: 259.98
A23: 8 | B23: № 202/2015 | C23: Макароны твердых сортов отварные | D23: 180 | E23: 248
A24: 9 | B24: ТТК 2021 | C24: Напиток из шиповника | D24: 200 | E24: 41
A25: 10 | B25: ТТК | C25: Печенье сдобное Мягкое | D25: 3 шт./45 | E25: 181
A26: 11 | C26: Хлеб ржано-пшеничный | D26: 25 | E26: 41
A27: 12 | C27: Хлеб пшеничный | D27: 20 | E27: 47
C28: ВСЕГО на 1 ученика: | D28: 148.99 ₽ | E28: =SUM(E13:E27) -> 1751.48

Sheet Меню 07.11.21
A1: Муниципальное бюджетное общеобразовательное учреждение
A2: «Ульянковская основная общеобразовательная школа
A3: Кайбицкого муниципального района Республики Татарстан»
A5: Утверждаю
A6: Директор школы Н.А.Челнокова
A7: МЕНЮ НА 07.11.2021 г.
A9: в оздоровительных (пришкольных) лагерях дневного пребывания в смену для учащихся с 11 лет и старше в столовых школ РТ
A11: № | C11: Наименование блюд | D11: Выход | E11: Ккал
C12: Завтрак
A13: 1 | B13: №338/2015 | C13: Плоды и ягоды свежие (яблоки) | D13: 120 | E13: 70.5
A14: 2 | B14: №173/2015 | C14: Каша вязкая молочная из рисовой крупы с маслом сливочным | D14: 200/5 | E14: 258
A15: 3 | B15: № 685/2004 | C15: Чай с молоком | D15: 200 | E15: 59
A16: 4 | C16: Батон | D16: 25 | E16: 66
C17: 2-й завтрак
A18: 5 | B18: №389/2015 | C18: Сок фруктовый в ассортименте (пакетир) | D18: 1/200 | E18: 88
C19: Обед
A20: 6 | B20: № 45/2015 | C20: Салат из свежей капусты | D20: 100 | E20: 91
A21: 7 | B21: № 98/2015 | C21: Суп картофельный с вермишелью, с мясными фрикадельками | D21: 250/22 | E21: 155
A22: 8 | B22: №289/2015 | C22: Рагу из птицы | D22: 50/200 | E22: 561
A23: 10 | B23: ТТК 2021 | C23: Компот из свежих плодов (яблоки) | D23: 200 | E23: 49.3
A24: 11 | B24: ТТК | C24: Печенье сдобное Вкусное | D24: 4 шт./45 | E24: 249
A25: 12 | C25: Хлеб ржано-пшеничный | D25: 20 | E25: 41
A26: 13 | C26: Хлеб пшеничный | D26: 20 | E26: 47
C27: ВСЕГО на 1 ученика: | D27: 148.99 ₽ | E27: =SUM(E13:E26) -> 1734.8
